{"text_format":"1","workbook":"xlsx","n_sheets":1,"sheets":["Feuil1"],"not_rendered":{"charts":0,"images":1,"macros":0,"external_links":0,"defined_names":1,"comments":0,"pivot_tables":0},"unopened":[],"bounds":{"document_bytes":16777216,"sheet_cells":100000,"rows_first":2000,"rows_last":500,"rows_between":2000,"halvings":0,"cell_chars":16384,"cell_head_chars":4096},"cells_cut":0,"cells_raw":0,"read":"whole","date_system":"1900"}

{"sheet":"Feuil1","index":0,"n_rows":43,"n_cols":11,"rows_kept":43,"cut":false,"hidden":false,"merged":[[50,0,50,3],[29,1,29,4],[21,1,21,4],[30,1,30,4],[20,1,20,4],[31,1,31,4],[23,1,23,4],[25,1,25,4],[26,1,26,4],[27,1,27,4],[28,1,28,4],[24,1,24,4],[22,1,22,4],[42,7,42,10],[32,0,32,4],[35,1,35,4],[36,1,36,4],[37,1,37,4],[38,1,38,4],[39,1,39,4],[40,1,40,4],[41,1,41,4],[42,1,42,4],[38,7,38,9],[41,7,41,10],[33,8,33,9],[33,0,33,7],[36,7,36,9],[34,7,34,10],[18,1,18,4],[19,1,19,4],[6,6,6,7],[10,1,10,4],[11,1,11,4],[12,1,12,4],[6,3,6,4],[13,1,13,4],[14,1,14,4],[5,0,9,1],[0,2,2,10],[15,1,15,4],[16,1,16,4],[17,1,17,4],[4,5,4,7],[6,8,6,10],[9,5,9,6],[9,7,9,9]]}
[null,null,"REMBOURSEMENT DE DÉPENSES\nValide du 15 juillet 2026 au 14 janvier 2027"]
[]
[]
[]
[null,null,null,null,null,"Nom de l'employé :"]
["Remboursement autorisé pour les repas:\nDéjeuner:  20$\nDiner:  30$\nSouper:  40$\nAucun remboursement ne sera permis pour la consommation de boissons alcoolisées\nLes frais de repas entre collègues ne sont pas admissibles\n"]
[null,null,null,null,null,null,"Période du :"]
[]
[]
[null,null,null,null,null,"TRANSPORT",null,"Inscrire les montants toutes taxes incluses"]
["DATE","DESCRIPTION DE L'ACTIVITÉ ET LIEU",null,null,null,"KM",0.6,"REPAS","HÉBERGEMENT","*AUTRES\nDÉPENSES","TOTAL"]
[null,null,null,null,null,null,{"$f":"F12*$G$11","v":0},null,null,null,{"$f":"IF(SUM(G12:J12)>0,SUM(G12:J12),\" \")","v":" "}]
[null,null,null,null,null,null,0,null,null,null," "]
[null,null,null,null,null,null,0,null,null,null," "]
[null,null,null,null,null,null,0,null,null,null," "]
[null,null,null,null,null,null,0,null,null,null," "]
[null,null,null,null,null,null,0,null,null,null," "]
[null,null,null,null,null,null,0,null,null,null," "]
[null,null,null,null,null,null,0,null,null,null," "]
[null,null,null,null,null,null,0,null,null,null," "]
[null,null,null,null,null,null,0,null,null,null," "]
[null,null,null,null,null,null,0,null,null,null," "]
[null,null,null,null,null,null,0,null,null,null," "]
[null,null,null,null,null,null,0,null,null,null," "]
[null,null,null,null,null,null,0,null,null,null," "]
[null,null,null,null,null,null,0,null,null,null,{"$f":"IF(SUM(G26:J26)>0,SUM(G26:J26),\" \")","v":" "}]
[null,null,null,null,null,null,0,null,null,null," "]
[null,null,null,null,null,null,0,null,null,null," "]
[null,null,null,null,null,null,0,null,null,null," "]
[null,null,null,null,null,null,0,null,null,null," "]
[null,null,null,null,null,null,0,null,null,null," "]
[null,null,null,null,null,null,0,null,null,null," "]
["TOTAL DES DÉPENSES TAXES INCLUSES",null,null,null,null,{"$f":"SUM(F12:F32)","v":0},{"$f":"SUM(G12:G32)","v":0},{"$f":"SUM(H12:H32)","v":0},{"$f":"SUM(I12:I32)","v":0},{"$f":"SUM(J12:J32)","v":0},{"$f":"SUM(G33:J33)","v":0}]
[null,null,null,null,null,null,null,null,"MONTANT REMBOURSÉ",null,{"$f":"SUM(K12:K32)","v":0}]
[null,null,null,null,null,null,null,"par dépôt direct dans les jours suivants la réunion du Conseil"]
["Postes budgétaires","*Détail autres dépenses",null,null,null,"$"]
["02-    -     -"]
["02-    -     -",null,null,null,null,null,null,"Signature de l'employé ",null,null,"Date "]
["02-    -     -"]
["02-    -     -",null,null,null,null,null,null,"Signature du responsable",null,null,"Date "]
["02-    -     -"]
["02-    -     -",null,null,null,null,null,null,"SVP joindre tous les reçus"]
["02-    -     -"]